[Event "Late-Titled-Tuesday-Blitz-May-28-2024"]
[Site "Chess.com"]
[Date "2024.05.28"]
[Round "5"]
[White "Lennis93"]
[Black "zsizsi99"]
[Result "0-1"]
[WhiteElo "2763"]
[BlackElo "2571"]
[TimeControl "180+1"]
[EndTime "14:54:31 PDT"]
[Termination "zsizsi99 won by resignation"]

1. d4 {[%clk 0:03:00.9]} 1... Nf6 {[%clk 0:02:59.2]} 2. Nf3 {[%clk 0:02:50]}
2... c5 {[%clk 0:02:55.8]} 3. d5 {[%clk 0:02:49.7]} 3... g6 {[%clk 0:02:47.8]}
4. c4 {[%clk 0:02:50]} 4... b5 {[%clk 0:02:47.1]} 5. Nc3 {[%clk 0:02:50.6]} 5...
b4 {[%clk 0:02:44.2]} 6. Na4 {[%clk 0:02:34]} 6... d6 {[%clk 0:02:44.2]} 7. b3
{[%clk 0:02:34.1]} 7... Bg7 {[%clk 0:02:44.4]} 8. Bb2 {[%clk 0:02:34.6]} 8...
O-O {[%clk 0:02:35.1]} 9. g3 {[%clk 0:02:33.3]} 9... Bd7 {[%clk 0:02:33.1]} 10.
Qc2 {[%clk 0:02:32.9]} 10... Qa5 {[%clk 0:02:31.4]} 11. Nd2 {[%clk 0:02:31.1]}
11... Bxa4 {[%clk 0:01:50.9]} 12. bxa4 {[%clk 0:02:32]} 12... Nbd7 {[%clk
0:01:49.6]} 13. Bh3 {[%clk 0:02:25.5]} 13... Nb6 {[%clk 0:01:49.3]} 14. O-O
{[%clk 0:02:25.2]} 14... Qxa4 {[%clk 0:01:48.9]} 15. Nb3 {[%clk 0:02:24.2]}
15... Qa6 {[%clk 0:01:48.2]} 16. Rfc1 {[%clk 0:02:23.2]} 16... Na4 {[%clk
0:01:48.5]} 17. Rab1 {[%clk 0:02:19.7]} 17... Nxb2 {[%clk 0:01:44]} 18. Rxb2
{[%clk 0:02:19.9]} 18... Ne4 {[%clk 0:01:41.9]} 19. Bd7 {[%clk 0:02:11.7]} 19...
Bxb2 {[%clk 0:01:27.3]} 20. Qxb2 {[%clk 0:02:09.7]} 20... Nc3 {[%clk 0:01:27.9]}
21. Rxc3 {[%clk 0:01:37.1]} 21... bxc3 {[%clk 0:01:27.3]} 22. Qxc3 {[%clk
0:01:38]} 22... Qxa2 {[%clk 0:01:23.9]} 23. Na5 {[%clk 0:01:38.3]} 23... Qxe2
{[%clk 0:01:14]} 24. h4 {[%clk 0:01:27]} 24... h5 {[%clk 0:01:11.8]} 25. Nc6
{[%clk 0:01:16]} 25... Rab8 {[%clk 0:01:02.8]} 26. Qa1 {[%clk 0:00:39.2]} 26...
Rb2 {[%clk 0:00:56.3]} 0-1

[Event "Late-Titled-Tuesday-Blitz-May-28-2024"]
[Site "Chess.com"]
[Date "2024.05.28"]
[Round "5"]
[White "NovakRatko"]
[Black "maurovargas01"]
[Result "1-0"]
[WhiteElo "2362"]
[BlackElo "1917"]
[TimeControl "180+1"]
[EndTime "14:54:35 PDT"]
[Termination "NovakRatko won by checkmate"]

1. d4 {[%clk 0:03:00.9]} 1... d5 {[%clk 0:02:59.8]} 2. c4 {[%clk 0:03:01]} 2...
e6 {[%clk 0:02:58.9]} 3. cxd5 {[%clk 0:03:01.3]} 3... exd5 {[%clk 0:02:59]} 4.
Nc3 {[%clk 0:03:02.1]} 4... c6 {[%clk 0:02:59.2]} 5. f3 {[%clk 0:03:02.4]} 5...
Nf6 {[%clk 0:02:58.8]} 6. e4 {[%clk 0:03:02.7]} 6... dxe4 {[%clk 0:02:58.3]} 7.
fxe4 {[%clk 0:03:03.6]} 7... Bb4 {[%clk 0:02:56.8]} 8. Qd3 {[%clk 0:03:04]} 8...
Qe7 {[%clk 0:02:50.1]} 9. e5 {[%clk 0:03:03.4]} 9... O-O {[%clk 0:02:44.1]} 10.
Bg5 {[%clk 0:03:02.5]} 10... h6 {[%clk 0:02:41.8]} 11. Bh4 {[%clk 0:03:01.8]}
11... g5 {[%clk 0:02:41.7]} 12. Bg3 {[%clk 0:03:02.1]} 12... Bg4 {[%clk
0:02:32.7]} 13. Be2 {[%clk 0:03:01.2]} 13... Bxe2 {[%clk 0:02:27.7]} 14. Nxe2
{[%clk 0:03:01.2]} 14... Nd5 {[%clk 0:02:25]} 15. O-O {[%clk 0:03:00]} 15... Nd7
{[%clk 0:02:22.3]} 16. Ne4 {[%clk 0:03:00]} 16... Ba5 {[%clk 0:02:17.7]} 17. Kh1
{[%clk 0:02:58.6]} 17... Bb6 {[%clk 0:02:17.4]} 18. Nd6 {[%clk 0:02:58]} 18...
Rab8 {[%clk 0:01:47.5]} 19. a3 {[%clk 0:02:53.6]} 19... c5 {[%clk 0:01:46]} 20.
Nf5 {[%clk 0:02:53]} 20... Qe6 {[%clk 0:01:41.3]} 21. Rae1 {[%clk 0:02:34.8]}
21... cxd4 {[%clk 0:01:40.8]} 22. Nexd4 {[%clk 0:02:33.6]} 22... Qg6 {[%clk
0:01:25.9]} 23. e6 {[%clk 0:02:27.8]} 23... N7f6 {[%clk 0:01:14.3]} 24. Bc7
{[%clk 0:02:24.8]} 24... Rbc8 {[%clk 0:01:06.8]} 25. exf7+ {[%clk 0:02:19.9]}
25... Kxf7 {[%clk 0:00:55.8]} 26. Nd6+ {[%clk 0:02:18.2]} 26... Kg7 {[%clk
0:00:55.8]} 27. Qxg6+ {[%clk 0:02:17.5]} 27... Kxg6 {[%clk 0:00:55.2]} 28. Nxc8
{[%clk 0:02:17.8]} 28... Rxc8 {[%clk 0:00:55.2]} 29. Bxb6 {[%clk 0:02:17.5]}
29... Nxb6 {[%clk 0:00:52.6]} 30. Re6 {[%clk 0:02:16.2]} 30... Nd5 {[%clk
0:00:50.2]} 31. h3 {[%clk 0:02:13.2]} 31... Rc7 {[%clk 0:00:45.2]} 32. Nb5
{[%clk 0:02:10.8]} 32... Rc2 {[%clk 0:00:40.1]} 33. Nc3 {[%clk 0:02:10.2]} 33...
Rxb2 {[%clk 0:00:32.3]} 34. Nxd5 {[%clk 0:02:09.3]} 34... Kf7 {[%clk 0:00:29.9]}
35. Rfxf6+ {[%clk 0:02:08.1]} 35... Kg7 {[%clk 0:00:29.3]} 36. Re7+ {[%clk
0:02:07.9]} 36... Kg8 {[%clk 0:00:28.7]} 37. Rd6 {[%clk 0:02:04.7]} 37... Rb1+
{[%clk 0:00:15.9]} 38. Kh2 {[%clk 0:02:03.5]} 38... Rf1 {[%clk 0:00:15.9]} 39.
Nf6+ {[%clk 0:02:03.2]} 39... Kf8 {[%clk 0:00:12.6]} 40. Rxb7 {[%clk 0:02:02.3]}
40... Rxf6 {[%clk 0:00:08.4]} 41. Rxf6+ {[%clk 0:02:01.7]} 41... Ke8 {[%clk
0:00:09.3]} 42. Rxh6 {[%clk 0:02:00.1]} 42... Kf8 {[%clk 0:00:08.9]} 43. Rh8#
{[%clk 0:01:59.6]} 1-0

[Event "Late-Titled-Tuesday-Blitz-May-28-2024"]
[Site "Chess.com"]
[Date "2024.05.28"]
[Round "5"]
[White "TheoSlade"]
[Black "NikaVolkov"]
[Result "0-1"]
[WhiteElo "2469"]
[BlackElo "2763"]
[TimeControl "180+1"]
[EndTime "14:54:40 PDT"]
[Termination "NikaVolkov won by resignation"]

1. d4 {[%clk 0:03:00.9]} 1... d5 {[%clk 0:02:59.8]} 2. c4 {[%clk 0:03:00.9]}
2... e6 {[%clk 0:03:00.3]} 3. Nf3 {[%clk 0:03:01.2]} 3... Nf6 {[%clk 0:03:00.7]}
4. g3 {[%clk 0:03:01.6]} 4... Be7 {[%clk 0:03:01.3]} 5. Bg2 {[%clk 0:03:01.9]}
5... O-O {[%clk 0:03:02]} 6. O-O {[%clk 0:03:02.2]} 6... dxc4 {[%clk 0:03:02.9]}
7. Qc2 {[%clk 0:03:02.1]} 7... a6 {[%clk 0:03:03.1]} 8. a4 {[%clk 0:03:02.5]}
8... Nbd7 {[%clk 0:03:03.5]} 9. Nbd2 {[%clk 0:02:52.2]} 9... c5 {[%clk
0:03:03.3]} 10. Nxc4 {[%clk 0:02:49.4]} 10... cxd4 {[%clk 0:02:57.7]} 11. Nxd4
{[%clk 0:02:44.4]} 11... Nb6 {[%clk 0:02:45.1]} 12. Nxb6 {[%clk 0:02:34.4]}
12... Qxb6 {[%clk 0:02:46]} 13. Rd1 {[%clk 0:02:17.2]} 13... Bc5 {[%clk
0:02:38.3]} 14. a5 {[%clk 0:02:14]} 14... Qa7 {[%clk 0:02:37.1]} 15. e3 {[%clk
0:02:07.2]} 15... Bd7 {[%clk 0:02:29.9]} 16. b3 {[%clk 0:02:02.5]} 16... Rac8
{[%clk 0:02:20.6]} 17. Qe2 {[%clk 0:02:02.7]} 17... e5 {[%clk 0:02:16.5]} 18.
Nf3 {[%clk 0:01:55.7]} 18... Bb5 {[%clk 0:02:09.5]} 19. Qb2 {[%clk 0:01:41.4]}
19... Rfd8 {[%clk 0:02:02.5]} 20. Bd2 {[%clk 0:01:36.6]} 20... e4 {[%clk
0:01:56.8]} 21. Ng5 {[%clk 0:01:26.9]} 21... Bd3 {[%clk 0:01:33.6]} 22. Bc3
{[%clk 0:01:25.1]} 22... Be7 {[%clk 0:01:29.4]} 23. Bf1 {[%clk 0:01:16.8]} 23...
Qc5 {[%clk 0:01:21.6]} 24. Bd4 {[%clk 0:01:11.6]} 24... Qxg5 {[%clk 0:01:20]}
25. Bxd3 {[%clk 0:00:55.9]} 25... exd3 {[%clk 0:01:20.9]} 26. Rxd3 {[%clk
0:00:56]} 26... h6 {[%clk 0:01:19.2]} 27. Rc1 {[%clk 0:00:45.7]} 27... Qxa5
{[%clk 0:01:16.9]} 28. Rdc3 {[%clk 0:00:40.7]} 28... Rxc3 {[%clk 0:01:12.8]} 29.
Bxc3 {[%clk 0:00:41.6]} 29... Qb5 {[%clk 0:01:07.5]} 30. Be5 {[%clk 0:00:38.4]}
30... a5 {[%clk 0:01:01.6]} 31. Qa2 {[%clk 0:00:32]} 31... Qxe5 {[%clk
0:01:00.6]} 0-1

[Event "Late-Titled-Tuesday-Blitz-May-28-2024"]
[Site "Chess.com"]
[Date "2024.05.28"]
[Round "5"]
[White "NikitaShnadrygin"]
[Black "SaiHanThiha"]
[Result "1-0"]
[WhiteElo "2733"]
[BlackElo "2511"]
[TimeControl "180+1"]
[EndTime "14:54:44 PDT"]
[Termination "NikitaShnadrygin won by resignation"]

1. e4 {[%clk 0:03:00.9]} 1... c6 {[%clk 0:03:00]} 2. d4 {[%clk 0:02:59.8]} 2...
d5 {[%clk 0:03:00.9]} 3. f3 {[%clk 0:03:00.5]} 3... dxe4 {[%clk 0:02:56.6]} 4.
fxe4 {[%clk 0:03:01.3]} 4... e5 {[%clk 0:02:57.5]} 5. Nf3 {[%clk 0:03:00.7]}
5... Bg4 {[%clk 0:02:57]} 6. Bc4 {[%clk 0:03:00.2]} 6... Nd7 {[%clk 0:02:57.5]}
7. O-O {[%clk 0:02:58.1]} 7... Ngf6 {[%clk 0:02:53.5]} 8. c3 {[%clk 0:02:56.6]}
8... b5 {[%clk 0:02:47.5]} 9. Bb3 {[%clk 0:02:56.3]} 9... Bd6 {[%clk 0:02:47.4]}
10. Bg5 {[%clk 0:02:54.4]} 10... O-O {[%clk 0:02:46.9]} 11. Nbd2 {[%clk
0:02:54.4]} 11... Qb6 {[%clk 0:02:42.7]} 12. Kh1 {[%clk 0:02:50.4]} 12... Rae8
{[%clk 0:02:37.9]} 13. h3 {[%clk 0:02:50.1]} 13... Bh5 {[%clk 0:02:34]} 14. Qe1
{[%clk 0:02:24.7]} 14... Bg6 {[%clk 0:02:31]} 15. Qh4 {[%clk 0:02:19.9]} 15...
exd4 {[%clk 0:02:10.3]} 16. Rae1 {[%clk 0:02:04.3]} 16... dxc3 {[%clk
0:02:08.5]} 17. bxc3 {[%clk 0:02:05.2]} 17... c5 {[%clk 0:01:24.4]} 18. Bxf6
{[%clk 0:01:45]} 18... gxf6 {[%clk 0:01:10.8]} 19. Bd5 {[%clk 0:01:43.2]} 19...
Kg7 {[%clk 0:01:03.1]} 20. Qf2 {[%clk 0:01:18.4]} 20... Qa5 {[%clk 0:01:01.6]}
21. Nb1 {[%clk 0:01:08.5]} 21... Ne5 {[%clk 0:00:44.2]} 22. Rd1 {[%clk
0:00:57.4]} 22... Nxf3 {[%clk 0:00:41.2]} 23. Qxf3 {[%clk 0:00:57.4]} 23... Be5
{[%clk 0:00:41.6]} 24. Rf2 {[%clk 0:00:45.2]} 24... Qa3 {[%clk 0:00:41.3]} 25.
Nxa3 {[%clk 0:00:43.7]} 1-0

[Event "Late-Titled-Tuesday-Blitz-May-28-2024"]
[Site "Chess.com"]
[Date "2024.05.28"]
[Round "5"]
[White "RAU4ever"]
[Black "Squirlolz"]
[Result "1-0"]
[WhiteElo "2367"]
[BlackElo "2521"]
[TimeControl "180+1"]
[EndTime "14:54:44 PDT"]
[Termination "RAU4ever won by checkmate"]

1. e4 {[%clk 0:03:00.9]} 1... e5 {[%clk 0:02:57.2]} 2. Nf3 {[%clk 0:03:00.3]}
2... Nc6 {[%clk 0:02:57.5]} 3. Bc4 {[%clk 0:03:00.2]} 3... g6 {[%clk 0:02:57.3]}
4. d4 {[%clk 0:02:56.6]} 4... exd4 {[%clk 0:02:57.4]} 5. Nxd4 {[%clk 0:02:57.5]}
5... Bg7 {[%clk 0:02:57.7]} 6. Be3 {[%clk 0:02:57]} 6... Nge7 {[%clk 0:02:57.8]}
7. Nc3 {[%clk 0:02:56]} 7... O-O {[%clk 0:02:58]} 8. Qd2 {[%clk 0:02:52.6]} 8...
a6 {[%clk 0:02:56.7]} 9. h4 {[%clk 0:02:46.1]} 9... b5 {[%clk 0:02:56.8]} 10.
Bb3 {[%clk 0:02:46]} 10... Nxd4 {[%clk 0:02:39.7]} 11. Bxd4 {[%clk 0:02:45.1]}
11... Nc6 {[%clk 0:02:40]} 12. Bxg7 {[%clk 0:02:39.4]} 12... Kxg7 {[%clk
0:02:40.9]} 13. h5 {[%clk 0:02:36.9]} 13... Qe7 {[%clk 0:02:29.8]} 14. O-O-O
{[%clk 0:02:29.1]} 14... Na5 {[%clk 0:02:04.1]} 15. hxg6 {[%clk 0:00:42.4]}
15... Nxb3+ {[%clk 0:02:02.6]} 16. axb3 {[%clk 0:00:43.3]} 16... fxg6 {[%clk
0:02:02.8]} 17. Nd5 {[%clk 0:00:40.9]} 17... Qf7 {[%clk 0:02:02.7]} 18. Rh3
{[%clk 0:00:31.4]} 18... h5 {[%clk 0:01:54.8]} 19. Qd4+ {[%clk 0:00:27.5]} 19...
Kg8 {[%clk 0:01:51.4]} 20. g4 {[%clk 0:00:23.7]} 20... d6 {[%clk 0:01:46.2]} 21.
Rg1 {[%clk 0:00:20.8]} 21... c6 {[%clk 0:01:39.8]} 22. gxh5 {[%clk 0:00:13.9]}
22... Bxh3 {[%clk 0:01:36.5]} 23. Rxg6+ {[%clk 0:00:12.6]} 23... Qxg6 {[%clk
0:01:26.9]} 24. Ne7+ {[%clk 0:00:12.1]} 24... Kf7 {[%clk 0:01:27.3]} 25. Nxg6
{[%clk 0:00:13]} 25... Rfd8 {[%clk 0:01:22.2]} 26. h6 {[%clk 0:00:13.2]} 26...
Kxg6 {[%clk 0:01:19.8]} 27. Qg7+ {[%clk 0:00:13]} 27... Kh5 {[%clk 0:01:20.3]}
28. h7 {[%clk 0:00:12.5]} 28... Rh8 {[%clk 0:01:14.8]} 29. f4 {[%clk 0:00:12.3]}
29... Bg4 {[%clk 0:01:03.7]} 30. Qg5# {[%clk 0:00:12.1]} 1-0

[Event "Late-Titled-Tuesday-Blitz-May-28-2024"]
[Site "Chess.com"]
[Date "2024.05.28"]
[Round "5"]
[White "artin10862"]
[Black "IMRosen"]
[Result "1-0"]
[WhiteElo "3019"]
[BlackElo "2721"]
[TimeControl "180+1"]
[EndTime "14:54:52 PDT"]
[Termination "artin10862 won on time"]

1. a4 {[%clk 0:02:54.1]} 1... e5 {[%clk 0:02:59.3]} 2. a5 {[%clk 0:02:54.1]}
2... d5 {[%clk 0:02:57.9]} 3. e3 {[%clk 0:02:54.6]} 3... Bd6 {[%clk 0:02:53.4]}
4. d4 {[%clk 0:02:54.6]} 4... e4 {[%clk 0:02:54]} 5. c4 {[%clk 0:02:54.4]} 5...
c6 {[%clk 0:02:54.4]} 6. Nc3 {[%clk 0:02:54.3]} 6... Nf6 {[%clk 0:02:54.3]} 7.
Qb3 {[%clk 0:02:36.6]} 7... O-O {[%clk 0:02:53.6]} 8. Bd2 {[%clk 0:02:35.8]}
8... Bc7 {[%clk 0:02:06.4]} 9. cxd5 {[%clk 0:02:32]} 9... Bxa5 {[%clk
0:02:05.7]} 10. Nxe4 {[%clk 0:02:14.1]} 10... Bxd2+ {[%clk 0:01:44.8]} 11. Nxd2
{[%clk 0:02:15]} 11... Nxd5 {[%clk 0:01:45.4]} 12. Ngf3 {[%clk 0:02:13]} 12...
Re8 {[%clk 0:01:37.5]} 13. Bc4 {[%clk 0:02:11.1]} 13... Nb6 {[%clk 0:01:31.5]}
14. Bxf7+ {[%clk 0:02:10.4]} 14... Kh8 {[%clk 0:01:29.3]} 15. Bxe8 {[%clk
0:02:11.1]} 15... Qxe8 {[%clk 0:01:30.2]} 16. O-O {[%clk 0:01:59.1]} 16... Be6
{[%clk 0:01:28.7]} 17. Qc2 {[%clk 0:01:55.3]} 17... N8d7 {[%clk 0:01:28.8]} 18.
e4 {[%clk 0:01:52.8]} 18... Bg4 {[%clk 0:01:28.8]} 19. h3 {[%clk 0:01:52.6]}
19... Bh5 {[%clk 0:01:29.2]} 20. Rfe1 {[%clk 0:01:52.6]} 20... Nf6 {[%clk
0:01:29.6]} 21. Ne5 {[%clk 0:01:52]} 21... Rd8 {[%clk 0:01:19.3]} 22. Rxa7
{[%clk 0:01:50.3]} 22... Rxd4 {[%clk 0:01:18.9]} 23. Rxb7 {[%clk 0:01:45.4]}
23... Qxe5 {[%clk 0:00:43.9]} 24. Rxb6 {[%clk 0:01:43.9]} 24... h6 {[%clk
0:00:35.5]} 25. Qc3 {[%clk 0:01:42.6]} 25... c5 {[%clk 0:00:30]} 26. Nb3 {[%clk
0:01:38]} 26... Nxe4 {[%clk 0:00:19.8]} 27. Nxd4 {[%clk 0:01:36.9]} 27... cxd4
{[%clk 0:00:13.1]} 28. Qc8+ {[%clk 0:01:36.7]} 28... Kh7 {[%clk 0:00:10.5]} 29.
Qc2 {[%clk 0:01:37.6]} 29... Bg6 {[%clk 0:00:10.2]} 30. Rxg6 {[%clk 0:01:37.4]}
30... d3 {[%clk 0:00:06.6]} 31. Qxd3 {[%clk 0:01:36]} 31... Nxf2 {[%clk
0:00:03.5]} 32. Rxg7+ {[%clk 0:01:31]} 32... Kxg7 {[%clk 0:00:03.2]} 33. Qd7+
{[%clk 0:01:31.7]} 33... Kg6 {[%clk 0:00:03]} 34. Rxe5 {[%clk 0:01:32.4]} 34...
Nxh3+ {[%clk 0:00:01]} 35. gxh3 {[%clk 0:01:30.6]} 35... Kf6 {[%clk 0:00:01]}
36. Qf5+ {[%clk 0:01:27.5]} 1-0

[Event "Late-Titled-Tuesday-Blitz-May-28-2024"]
[Site "Chess.com"]
[Date "2024.05.28"]
[Round "5"]
[White "Kostukov_Alex"]
[Black "Slovak_fighter2000"]
[Result "0-1"]
[WhiteElo "2379"]
[BlackElo "2551"]
[TimeControl "180+1"]
[EndTime "14:54:56 PDT"]
[Termination "Slovak_fighter2000 won by checkmate"]

1. g3 {[%clk 0:03:00.9]} 1... e5 {[%clk 0:02:58.6]} 2. Bg2 {[%clk 0:03:00.5]}
2... Nf6 {[%clk 0:02:57.6]} 3. c4 {[%clk 0:03:01.4]} 3... c6 {[%clk 0:02:57]} 4.
a3 {[%clk 0:02:57.2]} 4... d5 {[%clk 0:02:56.7]} 5. cxd5 {[%clk 0:02:57.3]} 5...
cxd5 {[%clk 0:02:57.6]} 6. d4 {[%clk 0:02:57.3]} 6... e4 {[%clk 0:02:52]} 7. Bg5
{[%clk 0:02:54.2]} 7... Be7 {[%clk 0:02:39.8]} 8. Nc3 {[%clk 0:02:53.2]} 8...
Nc6 {[%clk 0:02:37.1]} 9. Nh3 {[%clk 0:02:51.3]} 9... O-O {[%clk 0:02:34.3]} 10.
Nf4 {[%clk 0:02:49.9]} 10... Be6 {[%clk 0:02:24.6]} 11. e3 {[%clk 0:02:49.3]}
11... Na5 {[%clk 0:02:15.6]} 12. O-O {[%clk 0:02:38.7]} 12... Rc8 {[%clk
0:02:12.3]} 13. Bxf6 {[%clk 0:02:32.1]} 13... Bxf6 {[%clk 0:02:12.2]} 14. f3
{[%clk 0:02:32.4]} 14... Nc4 {[%clk 0:02:07.6]} 15. Qe2 {[%clk 0:02:29]} 15...
exf3 {[%clk 0:02:01]} 16. Bxf3 {[%clk 0:02:28.3]} 16... Re8 {[%clk 0:01:59.6]}
17. Rad1 {[%clk 0:01:09.8]} 17... Nxa3 {[%clk 0:01:24.2]} 18. Ncxd5 {[%clk
0:01:01.8]} 18... Nc4 {[%clk 0:01:14]} 19. Nxf6+ {[%clk 0:00:54.8]} 19... Qxf6
{[%clk 0:01:12.6]} 20. Bxb7 {[%clk 0:00:41.1]} 20... Rb8 {[%clk 0:01:12.4]} 21.
Bc6 {[%clk 0:00:29.9]} 21... Rxb2 {[%clk 0:00:49.3]} 22. Qf3 {[%clk 0:00:08.7]}
22... Qh6 {[%clk 0:00:45.5]} 23. Nxe6 {[%clk 0:00:05.3]} 23... Qxh2# {[%clk
0:00:44.3]} 0-1

[Event "Late-Titled-Tuesday-Blitz-May-28-2024"]
[Site "Chess.com"]
[Date "2024.05.28"]
[Round "5"]
[White "momotaro77"]
[Black "giovannibrandao7"]
[Result "0-1"]
[WhiteElo "2516"]
[BlackElo "2294"]
[TimeControl "180+1"]
[EndTime "14:55:00 PDT"]
[Termination "giovannibrandao7 won by resignation"]

1. e4 {[%clk 0:03:00.2]} 1... c5 {[%clk 0:02:53.6]} 2. Nc3 {[%clk 0:02:56.4]}
2... Nc6 {[%clk 0:02:53.1]} 3. Bb5 {[%clk 0:02:55.4]} 3... g6 {[%clk 0:02:52.4]}
4. Bxc6 {[%clk 0:02:54]} 4... dxc6 {[%clk 0:02:49.8]} 5. d3 {[%clk 0:02:54.2]}
5... Bg7 {[%clk 0:02:50.2]} 6. f4 {[%clk 0:02:54.6]} 6... Nf6 {[%clk 0:02:49.6]}
7. Nf3 {[%clk 0:02:55.1]} 7... O-O {[%clk 0:02:49.9]} 8. O-O {[%clk 0:02:55.7]}
8... Nd7 {[%clk 0:02:42.6]} 9. Qe1 {[%clk 0:02:55.9]} 9... h6 {[%clk 0:02:34.5]}
10. e5 {[%clk 0:02:35]} 10... Kh7 {[%clk 0:02:26.1]} 11. Ne4 {[%clk 0:02:34.4]}
11... f5 {[%clk 0:02:22.5]} 12. Neg5+ {[%clk 0:02:23.7]} 12... hxg5 {[%clk
0:02:13.5]} 13. Nxg5+ {[%clk 0:02:24.6]} 13... Kg8 {[%clk 0:02:13.7]} 14. Qh4
{[%clk 0:02:24.5]} 14... Nf6 {[%clk 0:02:13.9]} 15. exf6 {[%clk 0:02:22.7]}
15... Rxf6 {[%clk 0:02:14.4]} 16. Qh7+ {[%clk 0:02:21.4]} 16... Kf8 {[%clk
0:02:14.4]} 17. Be3 {[%clk 0:02:20.3]} 17... Qd5 {[%clk 0:02:03.7]} 18. Rae1
{[%clk 0:02:18]} 18... b6 {[%clk 0:02:01.3]} 19. Bd2 {[%clk 0:02:06.7]} 19...
Be6 {[%clk 0:01:32.5]} 20. Bc3 {[%clk 0:02:05.2]} 20... Bg8 {[%clk 0:01:32.5]}
21. Qh4 {[%clk 0:01:47.8]} 21... c4 {[%clk 0:01:07.7]} 22. Bxf6 {[%clk
0:01:43.9]} 22... exf6 {[%clk 0:01:08.4]} 23. dxc4 {[%clk 0:01:35.7]} 23... Qd4+
{[%clk 0:00:56.2]} 24. Kh1 {[%clk 0:01:35.5]} 24... fxg5 {[%clk 0:00:56.4]} 25.
Qxg5 {[%clk 0:01:35.7]} 25... Qf6 {[%clk 0:00:56.2]} 26. Qg3 {[%clk 0:01:29.2]}
26... Bxc4 {[%clk 0:00:55.6]} 27. Rf3 {[%clk 0:01:29.9]} 27... Bd5 {[%clk
0:00:55.1]} 28. Rfe3 {[%clk 0:01:29.3]} 28... Be4 {[%clk 0:00:50.2]} 29. c3
{[%clk 0:01:24.9]} 29... Rd8 {[%clk 0:00:48.4]} 30. R3e2 {[%clk 0:01:25.5]}
30... Bh6 {[%clk 0:00:47.8]} 31. Qf2 {[%clk 0:01:25.2]} 31... Qd6 {[%clk
0:00:47]} 32. h3 {[%clk 0:01:11.4]} 32... Qxf4 {[%clk 0:00:44]} 33. Qxf4 {[%clk
0:01:07.4]} 33... Bxf4 {[%clk 0:00:44.9]} 34. Rf1 {[%clk 0:01:08]} 34... g5
{[%clk 0:00:34.4]} 35. Rxe4 {[%clk 0:01:03.8]} 35... fxe4 {[%clk 0:00:35.3]} 36.
g3 {[%clk 0:01:04.5]} 36... e3 {[%clk 0:00:35.1]} 37. gxf4 {[%clk 0:01:04.5]}
37... e2 {[%clk 0:00:35.6]} 38. Re1 {[%clk 0:01:04.2]} 38... Rd1 {[%clk
0:00:35.4]} 0-1

[Event "Late-Titled-Tuesday-Blitz-May-28-2024"]
[Site "Chess.com"]
[Date "2024.05.28"]
[Round "5"]
[White "Pig-filth"]
[Black "katharinareinecke"]
[Result "1-0"]
[WhiteElo "2364"]
[BlackElo "1948"]
[TimeControl "180+1"]
[EndTime "14:55:00 PDT"]
[Termination "Pig-filth won by resignation"]

1. d4 {[%clk 0:02:10]} 1... d5 {[%clk 0:02:41.3]} 2. Bg5 {[%clk 0:02:09.7]} 2...
h6 {[%clk 0:02:40.4]} 3. Bh4 {[%clk 0:02:09]} 3... c6 {[%clk 0:02:37.2]} 4. e3
{[%clk 0:02:05.3]} 4... Nf6 {[%clk 0:02:36.9]} 5. Nf3 {[%clk 0:02:04.8]} 5... e6
{[%clk 0:02:36]} 6. Bd3 {[%clk 0:02:01.9]} 6... Be7 {[%clk 0:02:35.9]} 7. O-O
{[%clk 0:01:58.5]} 7... O-O {[%clk 0:02:35.2]} 8. c4 {[%clk 0:01:58.7]} 8...
dxc4 {[%clk 0:02:32]} 9. Bxc4 {[%clk 0:01:58.4]} 9... b5 {[%clk 0:02:31.8]} 10.
Bd3 {[%clk 0:01:53.2]} 10... a6 {[%clk 0:02:30.1]} 11. Ne5 {[%clk 0:01:48.2]}
11... Nd5 {[%clk 0:02:21.5]} 12. Bxe7 {[%clk 0:01:43.4]} 12... Qxe7 {[%clk
0:02:20.6]} 13. Nc3 {[%clk 0:01:37.4]} 13... Bb7 {[%clk 0:02:19.6]} 14. Rc1
{[%clk 0:01:33.3]} 14... Nd7 {[%clk 0:02:13.4]} 15. Nxd5 {[%clk 0:01:30.2]}
15... cxd5 {[%clk 0:02:08.5]} 16. Rc7 {[%clk 0:01:25.7]} 16... Bc8 {[%clk
0:01:56]} 17. Bb1 {[%clk 0:01:22.3]} 17... Qd6 {[%clk 0:01:49.5]} 18. Rc6 {[%clk
0:01:18.5]} 18... Qb8 {[%clk 0:01:44.8]} 19. Qc2 {[%clk 0:01:09.6]} 19... f5
{[%clk 0:01:20.1]} 20. Rxe6 {[%clk 0:01:07.9]} 20... Nxe5 {[%clk 0:01:06.6]} 21.
Rxe5 {[%clk 0:01:08.8]} 21... Bb7 {[%clk 0:01:00]} 22. Rxf5 {[%clk 0:01:05.2]}
22... Rc8 {[%clk 0:00:52.8]} 23. Qd3 {[%clk 0:01:01.7]} 23... Qd6 {[%clk
0:00:48.7]} 24. Rf3 {[%clk 0:00:47.8]} 24... Rc3 {[%clk 0:00:16.4]} 25. bxc3
{[%clk 0:00:42.2]} 1-0

[Event "Late-Titled-Tuesday-Blitz-May-28-2024"]
[Site "Chess.com"]
[Date "2024.05.28"]
[Round "5"]
[White "crazycheesecake"]
[Black "yujiarun18"]
[Result "1-0"]
[WhiteElo "2149"]
[BlackElo "2239"]
[TimeControl "180+1"]
[EndTime "14:55:03 PDT"]
[Termination "crazycheesecake won by checkmate"]

1. Nf3 {[%clk 0:03:00.9]} 1... d5 {[%clk 0:02:59.7]} 2. c4 {[%clk 0:03:00.5]}
2... e6 {[%clk 0:02:59.6]} 3. g3 {[%clk 0:03:00.9]} 3... Nf6 {[%clk 0:02:59.8]}
4. Bg2 {[%clk 0:03:01.1]} 4... c6 {[%clk 0:03:00.4]} 5. b3 {[%clk 0:03:00.3]}
5... Be7 {[%clk 0:03:01]} 6. O-O {[%clk 0:02:58.9]} 6... O-O {[%clk 0:03:01.6]}
7. Bb2 {[%clk 0:02:58.9]} 7... dxc4 {[%clk 0:02:58]} 8. bxc4 {[%clk 0:02:58.1]}
8... c5 {[%clk 0:02:58]} 9. Nc3 {[%clk 0:02:55.5]} 9... Bd7 {[%clk 0:02:58.5]}
10. Ne5 {[%clk 0:02:48.5]} 10... Nc6 {[%clk 0:02:54]} 11. Nxd7 {[%clk
0:02:42.2]} 11... Qxd7 {[%clk 0:02:54.2]} 12. Rb1 {[%clk 0:02:30.2]} 12... Rfd8
{[%clk 0:02:51.8]} 13. d3 {[%clk 0:02:29]} 13... Rac8 {[%clk 0:02:49.5]} 14. Ne4
{[%clk 0:01:49]} 14... Nxe4 {[%clk 0:02:36.3]} 15. Bxe4 {[%clk 0:01:45.6]} 15...
Nd4 {[%clk 0:02:35.1]} 16. Bxd4 {[%clk 0:01:41.3]} 16... Qxd4 {[%clk 0:02:34.9]}
17. Rxb7 {[%clk 0:01:40.6]} 17... Bf6 {[%clk 0:02:25.9]} 18. Qa4 {[%clk
0:01:31.6]} 18... Ra8 {[%clk 0:02:02.7]} 19. Rfb1 {[%clk 0:01:04.4]} 19... a5
{[%clk 0:01:58.7]} 20. R7b5 {[%clk 0:00:50.8]} 20... Be7 {[%clk 0:01:44.7]} 21.
Bxa8 {[%clk 0:00:40]} 21... h6 {[%clk 0:01:36.3]} 22. Be4 {[%clk 0:00:33.1]}
22... g6 {[%clk 0:01:35.2]} 23. Rb8 {[%clk 0:00:31.1]} 23... Kg7 {[%clk
0:01:30.6]} 24. Rxd8 {[%clk 0:00:26.1]} 24... Bxd8 {[%clk 0:01:31.1]} 25. Qe8
{[%clk 0:00:21]} 25... h5 {[%clk 0:00:54.9]} 26. Rb8 {[%clk 0:00:19.4]} 26...
Qa1+ {[%clk 0:00:37.5]} 27. Kg2 {[%clk 0:00:19.8]} 27... Qd4 {[%clk 0:00:33.6]}
28. Rxd8 {[%clk 0:00:19.6]} 28... Qe5 {[%clk 0:00:33.3]} 29. Qh8# {[%clk
0:00:19.3]} 1-0